[Event "Live Chess"]
[Site "Chess.com"]
[Date "2023.05.20"]
[Round "-"]
[White "onemoretime1975"]
[Black "Missedidea"]
[Result "1/2-1/2"]
[WhiteElo "1925"]
[BlackElo "1740"]
[TimeControl "300"]
[EndTime "11:54:50 PDT"]
[Termination "Game drawn by repetition"]

1. e4 {[%clk 0:04:56.6]} 1... c5 {[%clk 0:04:58.1]} 2. Nf3 {[%clk 0:04:54.5]}
2... d6 {[%clk 0:04:56.6]} 3. g3 {[%clk 0:04:48.3]} 3... Nf6 {[%clk 0:04:54.2]}
4. d3 {[%clk 0:04:46.8]} 4... g6 {[%clk 0:04:52.5]} 5. Bg2 {[%clk 0:04:45.7]}
5... Bg7 {[%clk 0:04:50.8]} 6. c3 {[%clk 0:04:44.9]} 6... O-O {[%clk 0:04:49.6]}
7. O-O {[%clk 0:04:43.3]} 7... Nc6 {[%clk 0:04:47.8]} 8. h3 {[%clk 0:04:37.8]}
8... Bd7 {[%clk 0:04:41.4]} 9. Be3 {[%clk 0:04:36.6]} 9... b6 {[%clk 0:04:39.1]}
10. Nbd2 {[%clk 0:04:34.2]} 10... Rc8 {[%clk 0:04:36.9]} 11. Rc1 {[%clk
0:04:31]} 11... e5 {[%clk 0:04:33.2]} 12. a3 {[%clk 0:04:27.6]} 12... h6 {[%clk
0:04:31.2]} 13. b4 {[%clk 0:04:22.8]} 13... Nh5 {[%clk 0:04:19.7]} 14. b5 {[%clk
0:04:11]} 14... Na5 {[%clk 0:04:14.4]} 15. c4 {[%clk 0:04:08.9]} 15... Qe8
{[%clk 0:04:07.3]} 16. a4 {[%clk 0:04:05.1]} 16... f5 {[%clk 0:04:04.6]} 17. Nb3
{[%clk 0:04:01.2]} 17... Nxb3 {[%clk 0:04:00.7]} 18. Qxb3 {[%clk 0:03:59.6]}
18... f4 {[%clk 0:03:58.3]} 19. gxf4 {[%clk 0:03:51.6]} 19... exf4 {[%clk
0:03:55]} 20. Bd2 {[%clk 0:03:51]} 20... g5 {[%clk 0:03:52.9]} 21. Bc3 {[%clk
0:03:48]} 21... Nf6 {[%clk 0:03:20.1]} 22. e5 {[%clk 0:03:43.4]} 22... dxe5
{[%clk 0:03:15.4]} 23. Nxe5 {[%clk 0:03:39]} 23... Qh5 {[%clk 0:02:50.8]} 24.
Qd1 {[%clk 0:03:23.3]} 24... Bf5 {[%clk 0:02:23.5]} 25. Qxh5 {[%clk 0:03:18.2]}
25... Nxh5 {[%clk 0:02:21.6]} 26. Bd5+ {[%clk 0:03:16.6]} 26... Kh7 {[%clk
0:02:17.8]} 27. Be4 {[%clk 0:03:07.4]} 27... Bxe4 {[%clk 0:02:11.6]} 28. dxe4
{[%clk 0:03:05.7]} 28... Rfe8 {[%clk 0:02:05]} 29. Ng4 {[%clk 0:02:50]} 29...
Rxe4 {[%clk 0:02:00.4]} 30. Bxg7 {[%clk 0:02:46.8]} 30... Kxg7 {[%clk 0:01:58]}
31. Rcd1 {[%clk 0:02:44.7]} 31... Re7 {[%clk 0:01:49.6]} 32. Rd6 {[%clk
0:02:39.4]} 32... Rf8 {[%clk 0:01:46.8]} 33. Rxh6 {[%clk 0:02:34]} 33... Nf6
{[%clk 0:01:38.2]} 34. Rxf6 {[%clk 0:02:27.6]} 34... Rxf6 {[%clk 0:01:37.3]} 35.
Nxf6 {[%clk 0:02:26.5]} 35... Kxf6 {[%clk 0:01:36.4]} 36. Rd1 {[%clk 0:02:25]}
36... Re4 {[%clk 0:01:33.9]} 37. Rd7 {[%clk 0:02:19.6]} 37... Rxc4 {[%clk
0:01:30]} 38. Rxa7 {[%clk 0:02:18.5]} 38... Rb4 {[%clk 0:01:28.4]} 39. Ra6
{[%clk 0:02:16.9]} 39... Kf5 {[%clk 0:01:17.5]} 40. Rxb6 {[%clk 0:02:14.1]}
40... Rxa4 {[%clk 0:01:16.3]} 41. Rc6 {[%clk 0:02:13.1]} 41... c4 {[%clk
0:01:14.8]} 42. b6 {[%clk 0:02:11.9]} 42... Rb4 {[%clk 0:01:11.7]} 43. b7 {[%clk
0:02:04.8]} 43... Rxb7 {[%clk 0:01:05.2]} 44. Rxc4 {[%clk 0:02:03.1]} 44... Rb5
{[%clk 0:01:03.1]} 45. Kg2 {[%clk 0:01:59.9]} 45... Re5 {[%clk 0:01:00.5]} 46.
Rd4 {[%clk 0:01:57.5]} 46... Ra5 {[%clk 0:00:58.2]} 47. Rc4 {[%clk 0:01:52.4]}
47... Kg6 {[%clk 0:00:55.6]} 48. Rc6+ {[%clk 0:01:49.2]} 48... Kh5 {[%clk
0:00:54.4]} 49. Rc3 {[%clk 0:01:47.2]} 49... Kh4 {[%clk 0:00:53.1]} 50. Rd3
{[%clk 0:01:43.2]} 50... Ra2 {[%clk 0:00:51.4]} 51. Rf3 {[%clk 0:01:40.1]} 51...
Rb2 {[%clk 0:00:49.6]} 52. Rd3 {[%clk 0:01:37.7]} 52... Rc2 {[%clk 0:00:48.4]}
53. Rf3 {[%clk 0:01:35.5]} 53... Rb2 {[%clk 0:00:47.3]} 54. Rd3 {[%clk
0:01:34.4]} 54... Rc2 {[%clk 0:00:46.5]} 55. Rd8 {[%clk 0:01:33.2]} 55... Kh5
{[%clk 0:00:40.1]} 56. Rd3 {[%clk 0:01:29.6]} 56... Kh4 {[%clk 0:00:35.9]}
1/2-1/2

[Event "Live Chess"]
[Site "Chess.com"]
[Date "2023.05.20"]
[Round "-"]
[White "flyingpuffins"]
[Black "wadsy27"]
[Result "0-1"]
[WhiteElo "1964"]
[BlackElo "2584"]
[TimeControl "300"]
[EndTime "11:55:01 PDT"]
[Termination "wadsy27 won by resignation"]

1. e4 {[%clk 0:04:55.4]} 1... e6 {[%clk 0:04:54.5]} 2. d4 {[%clk 0:04:54.3]}
2... d5 {[%clk 0:04:51.6]} 3. e5 {[%clk 0:04:53.8]} 3... c5 {[%clk 0:04:49.4]}
4. c3 {[%clk 0:04:52.6]} 4... Nc6 {[%clk 0:04:47.3]} 5. Nf3 {[%clk 0:04:51.5]}
5... Qb6 {[%clk 0:04:46.7]} 6. Bd3 {[%clk 0:04:50.5]} 6... cxd4 {[%clk
0:04:45.2]} 7. O-O {[%clk 0:04:49.3]} 7... Bd7 {[%clk 0:04:43.8]} 8. Re1 {[%clk
0:04:43.6]} 8... Nge7 {[%clk 0:04:41.3]} 9. h4 {[%clk 0:04:42]} 9... h6 {[%clk
0:04:40.7]} 10. h5 {[%clk 0:04:40.3]} 10... Rc8 {[%clk 0:04:34.7]} 11. Nbd2
{[%clk 0:04:36.7]} 11... Nf5 {[%clk 0:04:34]} 12. Bxf5 {[%clk 0:04:27.7]} 12...
exf5 {[%clk 0:04:32.2]} 13. Nb3 {[%clk 0:04:27]} 13... dxc3 {[%clk 0:04:24.6]}
14. bxc3 {[%clk 0:04:24.1]} 14... Be6 {[%clk 0:04:23.4]} 15. Be3 {[%clk
0:04:16.5]} 15... Qc7 {[%clk 0:04:21.6]} 16. Nbd4 {[%clk 0:04:12.3]} 16... a6
{[%clk 0:04:19.4]} 17. Bf4 {[%clk 0:03:49.3]} 17... Nxd4 {[%clk 0:04:10.3]} 18.
cxd4 {[%clk 0:03:46.4]} 18... Be7 {[%clk 0:04:05.2]} 19. Rc1 {[%clk 0:03:37]}
19... Qd7 {[%clk 0:04:03.3]} 20. Rxc8+ {[%clk 0:03:29.4]} 20... Qxc8 {[%clk
0:04:03.2]} 21. Qb3 {[%clk 0:03:26.3]} 21... O-O {[%clk 0:03:59.5]} 22. Rc1
{[%clk 0:03:23.2]} 22... Qd7 {[%clk 0:03:58.6]} 23. Bg3 {[%clk 0:03:07.7]} 23...
Rc8 {[%clk 0:03:56.1]} 24. Rb1 {[%clk 0:02:52]} 24... b5 {[%clk 0:03:52.8]} 25.
Qd3 {[%clk 0:02:43.4]} 25... Qc6 {[%clk 0:03:43.2]} 26. Ne1 {[%clk 0:02:16.2]}
26... Qc3 {[%clk 0:03:37.3]} 27. Qd1 {[%clk 0:02:10.3]} 27... b4 {[%clk
0:03:33.1]} 28. Rb3 {[%clk 0:02:08.2]} 28... Qc4 {[%clk 0:03:30.3]} 29. Bh2
{[%clk 0:01:56.6]} 29... a5 {[%clk 0:03:28.8]} 30. g4 {[%clk 0:01:54.5]} 30...
fxg4 {[%clk 0:03:23.9]} 31. f3 {[%clk 0:01:53.3]} 31... a4 {[%clk 0:03:22.5]}
32. Rd3 {[%clk 0:01:50]} 32... Qc1 {[%clk 0:03:18.5]} 33. Qe2 {[%clk 0:01:48]}
33... gxf3 {[%clk 0:03:12.6]} 34. Rxf3 {[%clk 0:01:46.7]} 34... Bg4 {[%clk
0:03:10.6]} 0-1

[Event "Live Chess"]
[Site "Chess.com"]
[Date "2023.05.20"]
[Round "-"]
[White "raminguy"]
[Black "MrDodgy"]
[Result "1-0"]
[WhiteElo "1997"]
[BlackElo "2280"]
[TimeControl "300"]
[EndTime "11:55:03 PDT"]
[Termination "raminguy won by resignation"]

1. d4 {[%clk 0:04:59.2]} 1... Nf6 {[%clk 0:04:57.6]} 2. Nc3 {[%clk 0:04:58.7]}
2... d5 {[%clk 0:04:56.2]} 3. Bf4 {[%clk 0:04:58]} 3... c6 {[%clk 0:04:54.4]} 4.
e3 {[%clk 0:04:56.9]} 4... g6 {[%clk 0:04:52.4]} 5. h4 {[%clk 0:04:55.2]} 5...
h5 {[%clk 0:04:50.1]} 6. Be2 {[%clk 0:04:53.7]} 6... Bg7 {[%clk 0:04:48.6]} 7.
Nf3 {[%clk 0:04:52.9]} 7... Bg4 {[%clk 0:04:46.4]} 8. Ne5 {[%clk 0:04:51.9]}
8... Bxe2 {[%clk 0:04:45.1]} 9. Qxe2 {[%clk 0:04:51.2]} 9... Nbd7 {[%clk
0:04:44.5]} 10. O-O-O {[%clk 0:04:50]} 10... Qa5 {[%clk 0:04:38.5]} 11. Kb1
{[%clk 0:04:43.6]} 11... Nb6 {[%clk 0:04:28.7]} 12. Qd2 {[%clk 0:04:33.2]} 12...
Nfd7 {[%clk 0:04:21.6]} 13. Nxd7 {[%clk 0:04:29]} 13... Nc4 {[%clk 0:04:10.5]}
14. Qe1 {[%clk 0:04:11.3]} 14... Kxd7 {[%clk 0:03:59.1]} 15. e4 {[%clk
0:04:05.7]} 15... e6 {[%clk 0:03:44.8]} 16. exd5 {[%clk 0:03:56.9]} 16... cxd5
{[%clk 0:03:31.3]} 17. Rd3 {[%clk 0:03:33.2]} 17... Rac8 {[%clk 0:03:20.9]} 18.
Nd1 {[%clk 0:03:31]} 18... Qxe1 {[%clk 0:03:06]} 19. Rxe1 {[%clk 0:03:29.2]}
19... b6 {[%clk 0:02:50.8]} 20. b3 {[%clk 0:03:22.8]} 20... Nd6 {[%clk
0:02:40.2]} 21. Bxd6 {[%clk 0:03:17.5]} 21... Kxd6 {[%clk 0:02:39]} 22. Rf3
{[%clk 0:03:08.2]} 22... Rc7 {[%clk 0:02:24.6]} 23. c3 {[%clk 0:03:06.2]} 23...
Rhc8 {[%clk 0:02:16.7]} 24. Kb2 {[%clk 0:02:52.8]} 24... a5 {[%clk 0:02:07.8]}
25. a4 {[%clk 0:02:50.3]} 25... Bh8 {[%clk 0:01:56.1]} 26. Rd3 {[%clk
0:02:42.3]} 26... f5 {[%clk 0:01:53.7]} 27. Rde3 {[%clk 0:02:38.5]} 27... Re8
{[%clk 0:01:51.7]} 28. f4 {[%clk 0:02:33.4]} 28... Bf6 {[%clk 0:01:45.4]} 29. g3
{[%clk 0:02:32.5]} 29... Rb7 {[%clk 0:01:41.5]} 30. Nf2 {[%clk 0:02:02.4]} 30...
b5 {[%clk 0:01:38.9]} 31. axb5 {[%clk 0:01:56.5]} 31... Rxb5 {[%clk 0:01:35.1]}
32. Nd3 {[%clk 0:01:52.6]} 32... Kd7 {[%clk 0:01:30.5]} 33. Nc5+ {[%clk
0:01:48.9]} 33... Rxc5 {[%clk 0:01:20.8]} 34. dxc5 {[%clk 0:01:45.9]} 34... d4
{[%clk 0:01:18.4]} 35. Rd3 {[%clk 0:01:40.9]} 35... Kc6 {[%clk 0:01:16.5]} 36.
cxd4 {[%clk 0:01:37.5]} 36... Kd5 {[%clk 0:01:09.6]} 37. Red1 {[%clk 0:01:33.3]}
37... Rb8 {[%clk 0:01:08.9]} 38. Ka3 {[%clk 0:01:31.6]} 38... Rb4 {[%clk
0:01:07.2]} 39. R1d2 {[%clk 0:01:27.6]} 39... Bxd4 {[%clk 0:01:04.6]} 40. Rxd4+
{[%clk 0:01:26.3]} 40... Rxd4 {[%clk 0:01:00.7]} 41. Rxd4+ {[%clk 0:01:26.2]}
1-0

[Event "Live Chess"]
[Site "Chess.com"]
[Date "2023.05.20"]
[Round "-"]
[White "Ocelot32"]
[Black "SupremeTactician"]
[Result "0-1"]
[WhiteElo "1397"]
[BlackElo "2400"]
[TimeControl "300"]
[EndTime "11:55:04 PDT"]
[Termination "SupremeTactician won by resignation"]

1. e4 {[%clk 0:04:57.2]} 1... e5 {[%clk 0:04:59.2]} 2. Nf3 {[%clk 0:04:54.7]}
2... Nc6 {[%clk 0:04:58.5]} 3. Bb5 {[%clk 0:04:52.8]} 3... a6 {[%clk 0:04:57.5]}
4. Ba4 {[%clk 0:04:50.7]} 4... Nf6 {[%clk 0:04:57.2]} 5. O-O {[%clk 0:04:48.3]}
5... Nxe4 {[%clk 0:04:56.2]} 6. d4 {[%clk 0:04:46.6]} 6... Be7 {[%clk
0:04:55.3]} 7. Re1 {[%clk 0:04:44.3]} 7... b5 {[%clk 0:04:53.7]} 8. Bb3 {[%clk
0:04:42.8]} 8... d5 {[%clk 0:04:53]} 9. Nxe5 {[%clk 0:04:37.6]} 9... Nxe5 {[%clk
0:04:50.6]} 10. dxe5 {[%clk 0:04:36.4]} 10... Be6 {[%clk 0:04:50.5]} 11. Bxd5
{[%clk 0:04:27.8]} 11... Qxd5 {[%clk 0:04:46.6]} 12. Qe2 {[%clk 0:04:13.6]}
12... Nc5 {[%clk 0:04:42]} 13. Nc3 {[%clk 0:04:12.2]} 13... Qc6 {[%clk
0:04:39.8]} 14. Be3 {[%clk 0:04:10]} 14... O-O {[%clk 0:04:38]} 15. Rad1 {[%clk
0:04:07.3]} 15... Rad8 {[%clk 0:04:35.9]} 16. Qh5 {[%clk 0:03:57]} 16... Rxd1
{[%clk 0:04:27.9]} 17. Rxd1 {[%clk 0:03:55.9]} 17... Rd8 {[%clk 0:04:26.9]} 18.
Rxd8+ {[%clk 0:03:50.9]} 18... Bxd8 {[%clk 0:04:26.8]} 19. Qe2 {[%clk
0:03:35.4]} 19... Be7 {[%clk 0:04:21.7]} 20. b4 {[%clk 0:03:31]} 20... Ne4
{[%clk 0:04:16.1]} 21. Nxe4 {[%clk 0:03:20.1]} 21... Qxe4 {[%clk 0:04:16]} 22.
a3 {[%clk 0:03:16.5]} 22... Bc4 {[%clk 0:03:37.6]} 23. Qd2 {[%clk 0:03:09.1]}
23... Qd5 {[%clk 0:03:33.6]} 24. Qe1 {[%clk 0:03:00.8]} 24... Qxe5 {[%clk
0:03:26.5]} 25. g3 {[%clk 0:02:53.6]} 25... Qe4 {[%clk 0:03:15.7]} 26. Qd2
{[%clk 0:02:50.1]} 26... Bd5 {[%clk 0:03:14]} 27. Kf1 {[%clk 0:02:48]} 27...
Qh1+ {[%clk 0:03:09.6]} 28. Ke2 {[%clk 0:02:47]} 28... Bc4+ {[%clk 0:03:09.5]}
0-1

[Event "Live Chess"]
[Site "Chess.com"]
[Date "2023.05.20"]
[Round "-"]
[White "Enhard"]
[Black "Vladyslav2008"]
[Result "0-1"]
[WhiteElo "1453"]
[BlackElo "2170"]
[TimeControl "300"]
[EndTime "11:55:09 PDT"]
[Termination "Vladyslav2008 won by resignation"]

1. d4 {[%clk 0:04:58.1]} 1... Nf6 {[%clk 0:04:57]} 2. Bf4 {[%clk 0:04:54.6]}
2... d5 {[%clk 0:04:54]} 3. e3 {[%clk 0:04:53.6]} 3... c5 {[%clk 0:04:52.5]} 4.
c3 {[%clk 0:04:52.5]} 4... Nc6 {[%clk 0:04:51.4]} 5. h3 {[%clk 0:04:48.6]} 5...
g6 {[%clk 0:04:50]} 6. Nf3 {[%clk 0:04:47.8]} 6... Bg7 {[%clk 0:04:49]} 7. Be2
{[%clk 0:04:46.8]} 7... Kf8 {[%clk 0:04:48]} 8. O-O {[%clk 0:04:44.1]} 8... h6
{[%clk 0:04:43.6]} 9. Ne5 {[%clk 0:04:40.3]} 9... g5 {[%clk 0:04:41.6]} 10. Nxc6
{[%clk 0:04:38.3]} 10... bxc6 {[%clk 0:04:39.6]} 11. Be5 {[%clk 0:04:37.3]}
11... cxd4 {[%clk 0:04:38.5]} 12. exd4 {[%clk 0:04:35.8]} 12... h5 {[%clk
0:04:31.7]} 13. Re1 {[%clk 0:04:33.2]} 13... g4 {[%clk 0:04:29.8]} 14. h4 {[%clk
0:04:32.3]} 14... Bf5 {[%clk 0:04:27.2]} 15. g3 {[%clk 0:04:27.4]} 15... e6
{[%clk 0:04:20.9]} 16. Bf1 {[%clk 0:04:26.2]} 16... Ne8 {[%clk 0:04:16]} 17.
Bxg7+ {[%clk 0:04:24.1]} 17... Kxg7 {[%clk 0:04:13.4]} 18. Bg2 {[%clk
0:04:22.2]} 18... Rb8 {[%clk 0:04:10]} 19. b4 {[%clk 0:04:15.8]} 19... Nd6
{[%clk 0:04:06.9]} 20. Nd2 {[%clk 0:04:13.6]} 20... a5 {[%clk 0:04:05.1]} 21. a3
{[%clk 0:04:11.8]} 21... axb4 {[%clk 0:03:57.2]} 22. axb4 {[%clk 0:04:10.1]}
22... Nb5 {[%clk 0:03:54.7]} 23. Qc1 {[%clk 0:03:59.2]} 23... Qf6 {[%clk
0:03:48.6]} 24. Bf1 {[%clk 0:03:47]} 24... Ra8 {[%clk 0:03:41.1]} 25. Rxa8
{[%clk 0:03:41.9]} 25... Rxa8 {[%clk 0:03:39.1]} 26. Bxb5 {[%clk 0:03:41.8]}
26... cxb5 {[%clk 0:03:37.6]} 27. Nb3 {[%clk 0:03:26.4]} 27... Be4 {[%clk
0:03:30.4]} 28. Nc5 {[%clk 0:03:23.5]} 28... Ra2 {[%clk 0:03:26.9]} 29. Nxe4
{[%clk 0:03:15]} 29... dxe4 {[%clk 0:03:23.6]} 30. Qg5+ {[%clk 0:03:12.9]} 30...
Qxg5 {[%clk 0:03:19.6]} 31. hxg5 {[%clk 0:03:11.8]} 31... Rc2 {[%clk 0:03:17.7]}
32. Re3 {[%clk 0:03:10.6]} 32... Kg6 {[%clk 0:03:15.5]} 33. Kf1 {[%clk
0:03:09.5]} 33... Kxg5 {[%clk 0:03:12.1]} 34. Rxe4 {[%clk 0:03:08]} 34... Rxc3
{[%clk 0:03:08.2]} 35. Re5+ {[%clk 0:03:07.2]} 35... Kg6 {[%clk 0:03:07.1]} 36.
Rxb5 {[%clk 0:03:06.1]} 36... Rc4 {[%clk 0:03:06.6]} 37. d5 {[%clk 0:03:02.8]}
37... exd5 {[%clk 0:03:05]} 38. Rxd5 {[%clk 0:03:01.5]} 38... Rxb4 {[%clk
0:03:04.4]} 39. Rd6+ {[%clk 0:02:59.4]} 39... Kg5 {[%clk 0:03:01.5]} 40. Kg2
{[%clk 0:02:57.9]} 40... f5 {[%clk 0:03:00.4]} 41. Rd8 {[%clk 0:02:56.7]} 41...
Rb6 {[%clk 0:02:56.1]} 42. Rg8+ {[%clk 0:02:55.3]} 42... Rg6 {[%clk 0:02:55]}
43. Re8 {[%clk 0:02:54.6]} 43... h4 {[%clk 0:02:53.4]} 44. gxh4+ {[%clk
0:02:51.6]} 44... Kxh4 {[%clk 0:02:52.2]} 45. Rh8+ {[%clk 0:02:51]} 45... Kg5
{[%clk 0:02:51.2]} 46. Kg3 {[%clk 0:02:49.8]} 46... f4+ {[%clk 0:02:50.1]} 47.
Kg2 {[%clk 0:02:48.6]} 47... Kf5 {[%clk 0:02:45.2]} 48. Rf8+ {[%clk 0:02:47.2]}
48... Ke5 {[%clk 0:02:42.7]} 49. Re8+ {[%clk 0:02:46]} 49... Kf5 {[%clk
0:02:40]} 50. Rf8+ {[%clk 0:02:44.4]} 50... Kg5 {[%clk 0:02:39.6]} 51. Rh8
{[%clk 0:02:41.4]} 51... Rh6 {[%clk 0:02:36.2]} 52. Rg8+ {[%clk 0:02:40.2]}
52... Kh4 {[%clk 0:02:35.2]} 53. Rf8 {[%clk 0:02:37.9]} 53... f3+ {[%clk
0:02:33.3]} 54. Kf1 {[%clk 0:02:33.4]} 54... Kh3 {[%clk 0:02:27.3]} 55. Rg8
{[%clk 0:02:20.2]} 55... Rh5 {[%clk 0:02:16.6]} 56. Rg7 {[%clk 0:02:17.4]} 56...
Kh4 {[%clk 0:02:15.3]} 57. Rg8 {[%clk 0:02:15]} 57... Rh6 {[%clk 0:02:12.3]} 58.
Rg7 {[%clk 0:02:13.7]} 58... Kh5 {[%clk 0:02:08.8]} 59. Rg8 {[%clk 0:02:12.5]}
59... Ra6 {[%clk 0:02:05.2]} 60. Rh8+ {[%clk 0:02:10.5]} 60... Kg6 {[%clk
0:02:03.9]} 61. Rg8+ {[%clk 0:02:09.7]} 61... Kh7 {[%clk 0:02:02.7]} 62. Re8
{[%clk 0:02:04]} 62... Ra1+ {[%clk 0:01:58.9]} 63. Re1 {[%clk 0:02:02.7]} 63...
Rxe1+ {[%clk 0:01:58.6]} 64. Kxe1 {[%clk 0:02:01.9]} 64... Kg6 {[%clk
0:01:58.4]} 65. Kf1 {[%clk 0:02:00.5]} 65... Kf5 {[%clk 0:01:55.6]} 66. Kg1
{[%clk 0:01:59.9]} 66... Ke4 {[%clk 0:01:55]} 67. Kh2 {[%clk 0:01:59.3]} 67...
Kd3 {[%clk 0:01:53.7]} 68. Kg3 {[%clk 0:01:58.6]} 68... Ke2 {[%clk 0:01:52.7]}
0-1

[Event "Live Chess"]
[Site "Chess.com"]
[Date "2023.05.20"]
[Round "-"]
[White "risinghelios"]
[Black "domrobson"]
[Result "0-1"]
[WhiteElo "1919"]
[BlackElo "1765"]
[TimeControl "300"]
[EndTime "11:55:13 PDT"]
[Termination "domrobson won by resignation"]

1. e4 {[%clk 0:04:59.1]} 1... e5 {[%clk 0:04:58.7]} 2. Bc4 {[%clk 0:04:59]} 2...
Nf6 {[%clk 0:04:57.8]} 3. Nf3 {[%clk 0:04:58.1]} 3... Nc6 {[%clk 0:04:57.3]} 4.
Ng5 {[%clk 0:04:56.9]} 4... d5 {[%clk 0:04:55.9]} 5. exd5 {[%clk 0:04:56.3]}
5... Na5 {[%clk 0:04:55.6]} 6. Bb5+ {[%clk 0:04:55.4]} 6... Bd7 {[%clk
0:04:55.3]} 7. Bxd7+ {[%clk 0:04:53.6]} 7... Qxd7 {[%clk 0:04:55.2]} 8. O-O
{[%clk 0:04:53]} 8... O-O-O {[%clk 0:04:54.7]} 9. b4 {[%clk 0:04:51.2]} 9... Nc4
{[%clk 0:04:52.6]} 10. d3 {[%clk 0:04:50.8]} 10... Qxd5 {[%clk 0:04:45.5]} 11.
Nc3 {[%clk 0:04:45]} 11... Qd4 {[%clk 0:04:41.4]} 12. dxc4 {[%clk 0:04:35.6]}
12... Qxc3 {[%clk 0:04:36.8]} 13. Qe2 {[%clk 0:04:23.5]} 13... Qxa1 {[%clk
0:04:34.9]} 14. Be3 {[%clk 0:04:20.4]} 14... Qc3 {[%clk 0:04:30.4]} 15. Nxf7
{[%clk 0:04:19]} 15... Bxb4 {[%clk 0:04:29.3]} 16. Nxh8 {[%clk 0:04:16.8]} 16...
Rxh8 {[%clk 0:04:27.1]} 17. Bxa7 {[%clk 0:04:16.3]} 17... b6 {[%clk 0:04:25.2]}
18. Rb1 {[%clk 0:04:14.2]} 18... Bc5 {[%clk 0:04:15.3]} 19. h3 {[%clk
0:04:11.4]} 19... Kb7 {[%clk 0:04:12.9]} 20. Rb3 {[%clk 0:04:09.1]} 20... Qa1+
{[%clk 0:04:10.3]} 21. Kh2 {[%clk 0:04:08]} 21... Kxa7 {[%clk 0:04:06.6]} 0-1

[Event "Live Chess"]
[Site "Chess.com"]
[Date "2023.05.20"]
[Round "-"]
[White "Richardallis"]
[Black "Brooms1989"]
[Result "1-0"]
[WhiteElo "1760"]
[BlackElo "1006"]
[TimeControl "300"]
[EndTime "11:55:15 PDT"]
[Termination "Richardallis won by resignation"]

1. d4 {[%clk 0:04:59.1]} 1... Nf6 {[%clk 0:04:57.3]} 2. Nf3 {[%clk 0:04:58.5]}
2... g6 {[%clk 0:04:52.2]} 3. Bg5 {[%clk 0:04:58]} 3... Bg7 {[%clk 0:04:50]} 4.
Nbd2 {[%clk 0:04:57.4]} 4... O-O {[%clk 0:04:46.9]} 5. c3 {[%clk 0:04:56.8]}
5... d6 {[%clk 0:04:43.8]} 6. e4 {[%clk 0:04:55.7]} 6... Bg4 {[%clk 0:04:40.5]}
7. Bc4 {[%clk 0:04:55]} 7... Nbd7 {[%clk 0:04:36.6]} 8. h3 {[%clk 0:04:53.1]}
8... Bxf3 {[%clk 0:04:35]} 9. Qxf3 {[%clk 0:04:52.7]} 9... h6 {[%clk 0:04:33.7]}
10. Bh4 {[%clk 0:04:50.9]} 10... e5 {[%clk 0:04:18.5]} 11. O-O {[%clk
0:04:48.7]} 11... exd4 {[%clk 0:04:14.9]} 12. cxd4 {[%clk 0:04:47.5]} 12... c5
{[%clk 0:04:02.7]} 13. dxc5 {[%clk 0:04:45.4]} 13... dxc5 {[%clk 0:04:02.6]} 14.
Qb3 {[%clk 0:04:41.6]} 14... b6 {[%clk 0:03:49.7]} 15. Nf3 {[%clk 0:04:38.3]}
15... Qc7 {[%clk 0:03:37.4]} 16. Bg3 {[%clk 0:04:36.1]} 16... Qd8 {[%clk
0:03:34.4]} 17. Rfe1 {[%clk 0:04:32.4]} 17... Nh5 {[%clk 0:03:13.2]} 18. Bd6
{[%clk 0:04:30.7]} 18... Qf6 {[%clk 0:02:46.9]} 19. Bxf8 {[%clk 0:04:27.7]}
19... Rxf8 {[%clk 0:02:46.3]} 20. Rad1 {[%clk 0:04:25.8]} 20... Ne5 {[%clk
0:02:41.4]} 21. Nxe5 {[%clk 0:04:24.4]} 21... Qxe5 {[%clk 0:02:40.1]} 22. Rd7
{[%clk 0:04:23.7]} 22... Qf6 {[%clk 0:02:23.1]} 23. e5 {[%clk 0:04:20.5]} 23...
Qg5 {[%clk 0:02:22]} 24. Bxf7+ {[%clk 0:04:17]} 24... Kh8 {[%clk 0:02:17]} 25.
e6 {[%clk 0:04:15.7]} 25... Nf4 {[%clk 0:02:15.1]} 26. Qg3 {[%clk 0:04:13.3]}
26... Qxg3 {[%clk 0:01:46.7]} 27. fxg3 {[%clk 0:04:11.6]} 27... Bf6 {[%clk
0:01:45.1]} 28. gxf4 {[%clk 0:04:10]} 28... g5 {[%clk 0:01:44.5]} 29. e7 {[%clk
0:04:07.8]} 29... Bxe7 {[%clk 0:01:43]} 30. Rdxe7 {[%clk 0:04:06.7]} 30... gxf4
{[%clk 0:01:37.8]} 31. Re8 {[%clk 0:04:04.7]} 31... Rxe8 {[%clk 0:01:36.2]} 32.
Rxe8+ {[%clk 0:04:03.4]} 32... Kg7 {[%clk 0:01:36.1]} 33. Re7 {[%clk 0:04:02.4]}
33... Kf6 {[%clk 0:01:35.1]} 34. Rxa7 {[%clk 0:04:00.7]} 1-0

[Event "Live Chess"]
[Site "Chess.com"]
[Date "2023.05.20"]
[Round "-"]
[White "ethiebear"]
[Black "Doge_Dandolo"]
[Result "0-1"]
[WhiteElo "774"]
[BlackElo "2088"]
[TimeControl "300"]
[EndTime "11:55:15 PDT"]
[Termination "Doge_Dandolo won by checkmate"]

1. e4 {[%clk 0:04:58.4]} 1... c6 {[%clk 0:04:58.4]} 2. Qh5 {[%clk 0:04:53.4]}
2... d5 {[%clk 0:04:49.9]} 3. d3 {[%clk 0:04:49.6]} 3... Nf6 {[%clk 0:04:45]} 4.
Qe5 {[%clk 0:04:38.9]} 4... dxe4 {[%clk 0:04:41.3]} 5. dxe4 {[%clk 0:04:36.1]}
5... Bg4 {[%clk 0:04:38]} 6. f3 {[%clk 0:04:26.6]} 6... Bh5 {[%clk 0:04:34.9]}
7. g4 {[%clk 0:04:25.2]} 7... Bg6 {[%clk 0:04:33.5]} 8. Bc4 {[%clk 0:04:23.7]}
8... e6 {[%clk 0:04:31.4]} 9. Bxe6 {[%clk 0:04:17.1]} 9... fxe6 {[%clk
0:04:29.9]} 10. Qxe6+ {[%clk 0:04:15.8]} 10... Qe7 {[%clk 0:04:28.7]} 11. Qb3
{[%clk 0:04:10.1]} 11... Bf7 {[%clk 0:04:24.3]} 12. Bg5 {[%clk 0:04:07.3]} 12...
Bxb3 {[%clk 0:04:22.4]} 13. cxb3 {[%clk 0:04:02.9]} 13... Qe5 {[%clk 0:04:18.7]}
14. Nh3 {[%clk 0:03:59.9]} 14... Qxb2 {[%clk 0:04:16.8]} 15. O-O {[%clk
0:03:58]} 15... Qxa1 {[%clk 0:04:15.7]} 16. Nc3 {[%clk 0:03:55.8]} 16... Qxc3
{[%clk 0:04:14.2]} 17. Bd2 {[%clk 0:03:53.4]} 17... Qxd2 {[%clk 0:04:11.8]} 18.
Nf4 {[%clk 0:03:52.2]} 18... Qxf4 {[%clk 0:04:10.5]} 19. Rc1 {[%clk 0:03:50.7]}
19... Qxc1+ {[%clk 0:04:08.2]} 20. Kg2 {[%clk 0:03:45.5]} 20... h5 {[%clk
0:04:06]} 21. Kg3 {[%clk 0:03:43.3]} 21... hxg4 {[%clk 0:04:04.4]} 22. fxg4
{[%clk 0:03:41.1]} 22... Qg1+ {[%clk 0:04:03]} 23. Kf4 {[%clk 0:03:39.4]} 23...
Qxg4+ {[%clk 0:04:02]} 24. Ke5 {[%clk 0:03:36.1]} 24... Nbd7+ {[%clk 0:03:58.4]}
25. Kd4 {[%clk 0:03:29.9]} 25... Bc5+ {[%clk 0:03:56.3]} 26. Kc4 {[%clk
0:03:27.7]} 26... Qxe4+ {[%clk 0:03:55.5]} 27. Kc3 {[%clk 0:03:26.4]} 27... Qd4+
{[%clk 0:03:53.5]} 28. Kc2 {[%clk 0:03:20.1]} 28... Rxh2+ {[%clk 0:03:52.4]} 29.
Kc1 {[%clk 0:03:15.3]} 29... Qg1# {[%clk 0:03:49.2]} 0-1